Cogmind - Beta 14 *** ADVENTURER MODE // 2024.08.20 @ 00:27:55 // Winter2019/RPGLIKE Player: DeepestRoots Result: Destroyed by H-61 Shepherd with Heavy Assault Cannon Performance ------------- Evolutions (4) 2000 Regions Visited (13) 2600 Robots Destroyed (145) 725 Value Destroyed (4895) 4895 Prototype IDs (54) 1080 Alien Tech Used (0) 0 Bonus (683) 683 TOTAL SCORE: 11983 Bonus ------- High Alert Combat Kills 100 Follower Combat Kills 106 Entered Garrisons 200 Aligned with FarCom 300 Friendly Fire -23 Cogmind --------- Core Integrity 0/600 Matter 161/300 Energy 325/325 System Corruption 8% Temperature Cool (-100) Movement Rolling (130) Ox2 Location -6/Factory Parts ------- > --- POWER (2) -------- Reinforced Antimatter Reactor > --- PROPULSION (3) --- Compact Wheel > --- UTILITY (9) ------ Cryofiber Web Advanced Heat Sink Disposable Heat Sink Structural Scanner 0b10 Alert Chip Advanced EM Disruption Field Improved Hacking Suite Improved Hacking Suite > --- WEAPON (3) ------- Heavy Plasma Cannon Enhanced Coil Gun > --- INVENTORY (5) ---- Protomatter-49 Phase Cannon EMP Blaster CPS Tube (2) Great Maul Peak State ------------ > --- POWER ------------ Fission Core Reinforced Antimatter Reactor > --- PROPULSION ------- Compact Wheel Compact Wheel > --- UTILITY ---------- Cryofiber Web Advanced Heat Sink Disposable Heat Sink Structural Scanner 0b10 Alert Chip Advanced EM Disruption Field Improved Hacking Suite Improved Hacking Suite > --- WEAPON ----------- Heavy Plasma Cannon Enhanced Coil Gun Advanced KE Penetrator > --- INVENTORY -------- Protomatter Phase Cannon EMP Blaster CPS Tube Great Maul [Rating: 70] Favorites ----------- Power Heavy Ion Engine Engine Heavy Ion Engine Power Core Light Nuclear Core Reactor Reinforced Antimatter Reactor Propulsion Compact Wheel Wheel Compact Wheel Flight Unit Surge Thruster Utility Structural Scanner Device Structural Scanner Processor 0b10 Alert Chip Hackware Hacking Suite Protection Light Armor Plating Weapon Heavy Particle Cannon Energy Gun Advanced Beam Rifle Energy Cannon Heavy Particle Cannon Ballistic Gun Improved Assault Rifle Ballistic Cannon Advanced Assault Cannon Launcher Rocket Launcher Impact Weapon Heavy Mace Slashing Weapon Ripper Build | -11 -10 -10 -10 -9 -8 -8 -8 -8 -8 -8 -6 -6 -6 ------- Run | Yrd Mat Min Exi Min Mat Gar Mat Sto Rec Scr Fac Was Fac Slots Evolved 13 | 4 . . 2 . 5 . . 1 . . . 1 . Power 1 | . . . . . . . . 1 . . . . . Propulsion 2 | 2 . . . . . . . . . . . . . Utility 8 | 1 . . 1 . 5 . . . . . . 1 . Weapon 2 | 1 . . 1 . . . . . . . . . . Parts Attached 99 | 7 10 2 4 1 14 13 1 16 7 1 3 3 17 Power 11 | 1 2 1 . . . 1 . 3 . . . 1 2 Engine 6 | 1 . 1 . . . 1 . 3 . . . . . Core 3 | . 2 . . . . . . . . . . . 1 Reactor 2 | . . . . . . . . . . . . 1 1 Propulsion 7 | 2 1 . . . . . . 4 . . . . . Treads . | . . . . . . . . . . . . . . Leg . | . . . . . . . . . . . . . . Wheel 6 | 2 1 . . . . . . 3 . . . . . Hover . | . . . . . . . . . . . . . . Flight 1 | . . . . . . . . 1 . . . . . Utility 29 | 2 5 1 1 . 7 1 1 3 1 1 1 2 3 Device 15 | 2 1 . . . 5 1 1 1 . . 1 2 1 Storage . | . . . . . . . . . . . . . . Processor 1 | . . . 1 . . . . . . . . . . Hackware 3 | . . . . . 1 . . . . . . . 2 Protection 10 | . 4 1 . . 1 . . 2 1 1 . . . Artifact . | . . . . . . . . . . . . . . Weapon 52 | 2 2 . 3 1 7 11 . 6 6 . 2 . 12 Energy Gun 8 | . . . . . 3 . . 3 1 . . . 1 Energy Cannon 17 | . . . . . 2 4 . . 4 . 2 . 5 Ballistic Gun 10 | 2 1 . 1 . . . . 2 . . . . 4 Ballistic Cannon 6 | . 1 . 2 . 1 1 . . 1 . . . . Launcher 9 | . . . . . 1 5 . 1 . . . . 2 Special Weapon . | . . . . . . . . . . . . . . Impact Weapon 1 | . . . . . . 1 . . . . . . . Slashing Weapon 1 | . . . . 1 . . . . . . . . . Piercing Weapon . | . . . . . . . . . . . . . . Special Melee Weapon . | . . . . . . . . . . . . . . Unidentified Prototypes 11 | . . . . . 2 . . 4 . . . 1 4 Corrupted Parts 1 | . . . . . . . . . . . . 1 . System Corruption 3 | . . . . . . . . . . . . 3 . Parts Lost 2 | . . . . . . . . . . . . . 2 Power . | . . . . . . . . . . . . . . Propulsion 1 | . . . . . . . . . . . . . 1 Utility 1 | . . . . . . . . . . . . . 1 Weapon . | . . . . . . . . . . . . . . Highest Loss Streak 1 | . . . . . . . . . . . . . 1 To Critical Strikes . | . . . . . . . . . . . . . . Average Slot Usage (%) 98 | . 90 100 93 96 99 99 100 100 99 100 99 94 97 Engine 8 | . 3 11 10 10 8 5 6 10 12 12 12 8 4 Wheel 21 | . 28 37 33 30 26 20 20 18 18 18 18 17 16 Device 25 | . 13 12 10 10 15 33 33 31 31 31 30 28 28 Processor 5 | . . . 5 10 8 6 6 6 6 6 6 5 5 Hackware 5 | . . . . . 2 6 6 6 6 6 6 5 10 Protection 7 | . 11 12 10 10 8 6 6 6 6 6 6 5 4 Energy Gun 2 | . . . . . 5 6 6 6 1 . . . . Energy Cannon 7 | . . . . . 6 5 6 6 10 12 12 11 10 Ballistic Gun 5 | . 12 12 10 10 4 . . 1 6 6 6 5 4 Ballistic Cannon 4 | . 11 12 10 10 7 5 6 4 . . . . . Peak Build Rating 70 | 9 10 10 37 19 38 38 40 48 46 45 49 57 70 Average Rating 37 | 5 8 9 12 17 25 37 39 44 45 44 46 53 61 On Entrance 29 | . 9 10 9 15 19 38 38 40 46 45 44 49 57 Naked Turns . | . . . . . . . . . . . . . . Heaviest Build 67 | 10 14 16 16 19 31 31 33 42 48 48 52 65 67 Greatest Support 42 | 32 42 42 42 42 42 42 42 42 42 42 42 42 42 Greatest Overweight (x) 3 | . . . . . . . . 1 1 1 1 1 3 Average Overweight (x) . | . . . . . . . . . . 1 1 1 . Largest Inventory Capacity 5 | 2 3 3 3 3 3 4 4 4 4 5 5 5 5 Average Capacity 3 | 2 2 3 3 3 3 3 4 4 4 4 5 5 5 Most Carried 5 | . 3 3 3 3 3 4 4 4 4 5 5 5 5 Average Carried 3 | . 1 3 3 3 2 3 4 3 3 4 4 5 5 Final Capacity 5 | 2 3 3 3 3 3 4 4 4 4 5 5 5 5 Final Carried 5 | . 3 3 3 3 3 4 4 4 4 5 5 5 5 Class Distribution -------------------- 62% | Hacker-Skirmisher 16% | Mutant 11% | Hacker-Tank 6% | Skirmisher Dominant Class ---------------- Mutant | -10/Materials Mutant | -10/Mines Mutant | -10/Exiles Assassin | -9/Mines Skirmisher | -8/Materials Hacker-Skirmisher | -8/Garrison Hacker-Skirmisher | -8/Materials Hacker-Skirmisher | -8/Storage Hacker-Skirmisher | -8/Recycling Hacker-Tank | -8/Scraptown Hacker-Skirmisher | -6/Factory Hacker-Skirmisher | -6/Waste Hacker-Skirmisher | -6/Factory Resources | -11 -10 -10 -10 -9 -8 -8 -8 -8 -8 -8 -6 -6 -6 ----------- Run | Yrd Mat Min Exi Min Mat Gar Mat Sto Rec Scr Fac Was Fac Matter Collected 2547 | 246 357 97 . 50 466 415 40 343 114 10 13 . 396 Remotely . | . . . . . . . . . . . . . . Salvage Created 4599 | 90 326 17 . . 939 976 138 923 387 . 92 . 711 Parts 276 | 4 32 4 . . 55 62 7 49 16 . 1 . 46 Haulers Intercepted 4 | . 2 . . . 1 . . . . . . . 1 Recyclers Shooed 3 | . . . . . 1 . . . 2 . . . . Parts Field Recycled . | . . . . . . . . . . . . . . Retrieved Matter . | . . . . . . . . . . . . . . Parts Self-Destructed . | . . . . . . . . . . . . . . Prevented . | . . . . . . . . . . . . . . Kills | -11 -10 -10 -10 -9 -8 -8 -8 -8 -8 -8 -6 -6 -6 ------- Run | Yrd Mat Min Exi Min Mat Gar Mat Sto Rec Scr Fac Was Fac Combat Hostiles Destroyed 114 | . 7 2 . . 24 31 3 15 7 . 1 . 24 Guns 30 | . 3 . . . 6 6 1 8 4 . . . 2 Cannons 58 | . 4 2 . . 13 11 2 7 3 . . . 16 AOE 25 | . . . . . 5 14 . . . . . . 6 Classes Destroyed 18 | 2 5 . . . 2 4 2 . . . . . 3 Worker 6 | . 3 1 . . 1 . . . . . . . 1 Builder 4 | . . . . . . . 1 1 . . . . 2 Tunneler 1 | 1 . . . . . . . . . . . . . Hauler 4 | . 2 . . . 1 . . . . . . . 1 Recycler 7 | 1 . . . . 2 . . 4 . . . . . Mechanic 1 | . . . . . . . 1 . . . . . . Watcher 8 | . 2 . . . 2 . 1 2 . . . . 1 Swarmer 35 | . 3 . . . 10 7 2 . . . . . 13 Cutter 2 | . . . . . . 2 . . . . . . . Saboteur 1 | . . . . . . . . . . . . . 1 Grunt 28 | . 4 2 . . 7 9 . 4 1 . . . 1 Brawler 6 | . . . . . . 4 . . 2 . . . . Duelist 4 | . . . . . . 4 . . . . . . . Protector 1 | . . . . . . . . . . . . . 1 Sentry 25 | . . . . . 6 1 1 10 4 . 1 . 2 Specialist 2 | . . . . . . . . . . . . . 2 Hunter 8 | . . . . . 1 3 . 1 . . . . 3 Programmer 2 | . . . . . . 1 . . . . . . 1 Best Kill Streak 8 | 2 5 2 . . 8 7 2 4 2 . 1 . 6 Combat Bots Only 7 | . 3 2 . . 5 7 2 2 2 . 1 . 6 Max Kills in Single Turn 3 | 1 1 1 . . 3 3 2 1 1 . 1 . 2 Gunslinging . | . . . . . . . . . . . . . . Exploded 3 | . . . . . 3 3 . . . . . . 2 Melee . | . . . . . . . . . . . . . . Uniques/NPCs Destroyed . | . . . . . . . . . . . . . . Combat | -11 -10 -10 -10 -9 -8 -8 -8 -8 -8 -8 -6 -6 -6 -------- Run | Yrd Mat Min Exi Min Mat Gar Mat Sto Rec Scr Fac Was Fac Hostile Shots Fired 383 | . 38 8 . . 70 40 13 45 4 . 9 1 155 Missed 116 | . 13 6 . . 21 14 4 15 1 . 3 1 38 Damage Taken 2809 | . 197 25 . . 470 300 62 238 27 . 24 . 1466 Core 2024 | . 136 19 . . 337 204 43 151 13 . 13 . 1108 Absorbed by Shields 221 | . . . . . 9 79 24 91 10 . 8 . . Redirected to Core 1646 | . 129 19 . . 238 178 27 138 13 . 13 . 891 Ignored by Resistances 888 | . 62 7 . . 139 108 25 93 10 . 12 . 432 Regen/Repaired (Parts) 418 | . . . . . . . . . . 33 90 . 295 Core Remaining (%) 100 | 100 . . . 100 . . . . . 100 . . . Volleys Fired 310 | 4 31 11 . . 53 60 20 45 15 . 5 3 63 Largest 3 | 2 2 2 . . 3 3 3 3 3 . 3 1 3 Hottest 198 | 40 55 55 . . 184 184 184 184 159 . 168 90 198 Shots Fired 658 | 8 62 22 . . 129 113 32 117 37 . 9 3 126 Gun 251 | 8 31 11 . . 49 31 6 48 21 . 2 . 44 Cannon 385 | . 31 11 . . 78 70 26 69 16 . 7 3 74 Launcher 22 | . . . . . 2 12 . . . . . . 8 Special . | . . . . . . . . . . . . . . Kinetic 295 | 8 62 22 . . 77 28 6 35 13 . 2 . 42 Thermal 341 | . . . . . 50 73 26 82 24 . 7 3 76 Explosive 17 | . . . . . 2 7 . . . . . . 8 Electromagnetic 5 | . . . . . . 5 . . . . . . . Robot Hit Streak 67 | 2 16 17 . . 19 11 29 67 31 . 13 . 16 Robot Miss Streak 3 | 1 2 1 . . 2 3 . 1 1 . 2 . 3 Penetration Max . | . . . . . . . . . . . . . . Secondary Targets . | . . . . . . . . . . . . . . Shots Hit Robots 416 | 4 42 19 . . 90 63 21 80 25 . 2 . 70 Core Hits 228 | 3 19 5 . . 38 55 6 27 9 . . . 66 Critical Kills 1 | . . . . . . . . . . . 1 . . Critical Parts Destroyed . | . . . . . . . . . . . . . . Critical Strikes 10 | . 1 . . . 1 3 . 4 . . 1 . . Burn 5 | . . . . . . 2 . 3 . . . . . Meltdown 1 | . . . . . . . . . . . 1 . . Blast 4 | . 1 . . . 1 1 . 1 . . . . . Melee Attacks 2 | . . . . . . 2 . . . . . . . Impact 2 | . . . . . . 2 . . . . . . . Slashing . | . . . . . . . . . . . . . . Piercing . | . . . . . . . . . . . . . . Sneak Attacks . | . . . . . . . . . . . . . . Combat Hostiles . | . . . . . . . . . . . . . . Follow-up Attacks . | . . . . . . . . . . . . . . Damage Inflicted 11894 | 46 603 294 . . 2310 2626 535 1869 523 . 39 . 3049 Guns 2961 | 46 286 129 . . 576 481 120 755 253 . 16 . 299 Cannons 5972 | . 317 165 . . 1296 984 415 1114 270 . 23 . 1388 Explosions 2961 | . . . . . 438 1161 . . . . . . 1362 Melee . | . . . . . . . . . . . . . . Ramming . | . . . . . . . . . . . . . . Kinetic 3457 | 46 603 294 . . 1042 435 140 489 93 . 16 . 299 Thermal 5476 | . . . . . 830 1030 395 1380 430 . 23 . 1388 Explosive 2409 | . . . . . 385 987 . . . . . . 1037 Electromagnetic 552 | . . . . . 53 174 . . . . . . 325 Impact . | . . . . . . . . . . . . . . Slashing . | . . . . . . . . . . . . . . Piercing . | . . . . . . . . . . . . . . Highest Corruption 8 | . . . . . . . . . . . . 8 8 Average Corruption 7 | . . . . . . . . . . . . 6 8 Corruption Purged . | . . . . . . . . . . . . . . Corruption Blocked . | . . . . . . . . . . . . . . Effects 44 | . . . . . . . . . . . . 2 42 Message Errors 8 | . . . . . . . . . . . . 1 7 Matter Fused 11 | . . . . . . . . . . . . . 11 Heat Flow Errors 7 | . . . . . . . . . . . . . 7 Energy Discharges 5 | . . . . . . . . . . . . . 5 Data Loss (minor) 7 | . . . . . . . . . . . . 1 6 Data Loss (major) 1 | . . . . . . . . . . . . . 1 Misfires 2 | . . . . . . . . . . . . . 2 Weapon Failures 3 | . . . . . . . . . . . . . 3 Overload Shots . | . . . . . . . . . . . . . . Overflow Damage 251 | . . . . . 57 77 10 33 2 . . . 72 Projectiles 191 | . . . . . 32 47 10 33 2 . . . 67 Explosions 60 | . . . . . 25 30 . . . . . . 5 Melee . | . . . . . . . . . . . . . . Knockbacks 16 | . 4 . . . 2 6 . 4 . . . . . Impact . | . . . . . . . . . . . . . . Kinetic 15 | . 3 . . . 2 6 . 4 . . . . . Secondary 1 | . 1 . . . . . . . . . . . . Self-Inflicted Damage 42 | . . . . . . 42 . . . . . . . Shots 3 | . . . . . . 3 . . . . . . . Rammed . | . . . . . . . . . . . . . . Targets Rammed . | . . . . . . . . . . . . . . Kicked . | . . . . . . . . . . . . . . Crushed . | . . . . . . . . . . . . . . Highest Temperature 500 | . 72 42 . . 416 500 151 196 2 . . . 316 Average Temperature 80 | . 21 12 . . 109 119 73 59 2 . . . 91 Received Heat Transfer 764 | . 108 18 . . 201 75 24 141 12 . 8 . 177 Effects 1 | . . . . . . 1 . . . . . . . Shutdowns 1 | . . . . . . 1 . . . . . . . Siege Activations . | . . . . . . . . . . . . . . Robots Corrupted . | . . . . . . . . . . . . . . Combat Hostiles . | . . . . . . . . . . . . . . Parts Fried 3 | . . . . . . 1 . . . . . . 2 Impact Corruptions . | . . . . . . . . . . . . . . Robots Melted 1 | . . . . . . . . . . . 1 . . Combat Hostiles 1 | . . . . . . . . . . . 1 . . Parts Melted 13 | . . . . . 1 3 1 2 . . 2 . 4 Heat Transferred 8894 | . . . . . 1332 1776 629 2516 703 . 37 . 1901 Parts Sabotaged . | . . . . . . . . . . . . . . Parts Stolen . | . . . . . . . . . . . . . . Parts Stripped . | . . . . . . . . . . . . . . Power Chain Reactions . | . . . . . . . . . . . . . . Alert | -11 -10 -10 -10 -9 -8 -8 -8 -8 -8 -8 -6 -6 -6 ------- Run | Yrd Mat Min Exi Min Mat Gar Mat Sto Rec Scr Fac Was Fac Peak Influence 791 | 10 204 88 . . 362 791 432 406 165 . 83 13 317 Initial 331 | . 5 18 . . . 6 331 155 47 . . 1 . Average 168 | 4 81 48 . . 185 444 354 160 56 . 32 4 72 Maximum Alert Level 3 | . 1 . . . 1 3 2 2 . . . . 1 Low Security (%) 68 | 100 80 100 . 100 42 21 . 75 100 . 100 100 96 Level 1 21 | . 19 . . . 57 22 94 23 . . . . 3 Level 2 6 | . . . . . . 36 5 . . . . . . Level 3 3 | . . . . . . 18 . . . . . . . Level 4 . | . . . . . . . . . . . . . . Level 5 . | . . . . . . . . . . . . . . High Security . | . . . . . . . . . . . . . . Max Security . | . . . . . . . . . . . . . . Squads Dispatched 11 | . . . . . 4 . . . . . . . 7 Investigation 3 | . . . . . . . . . . . . . 3 Extermination 1 | . . . . . . . . . . . . . 1 Reinforcement 3 | . . . . . 1 . . . . . . . 2 Assault . | . . . . . . . . . . . . . . Garrison 4 | . . . . . 3 . . . . . . . 1 Intercept . | . . . . . . . . . . . . . . Searches Triggered . | . . . . . . . . . . . . . . Construction Impeded . | . . . . . . . . . . . . . . Haulers Reinforced . | . . . . . . . . . . . . . . Active Scanning Responses . | . . . . . . . . . . . . . . Cargo Convoy Interrupts 1 | . . . . . . . . . . . . . 1 Stealth | -11 -10 -10 -10 -9 -8 -8 -8 -8 -8 -8 -6 -6 -6 --------- Run | Yrd Mat Min Exi Min Mat Gar Mat Sto Rec Scr Fac Was Fac Distress Signals 4 | . 1 . . . 2 . . 1 . . . . . Communications Jammed . | . . . . . . . . . . . . . . Distress Signals . | . . . . . . . . . . . . . . Times Spotted 141 | . 11 3 . . 36 25 4 19 4 . 2 6 31 Peak Tracking Total 7 | . 3 2 . . 6 5 2 3 2 . 1 6 7 Tactical Retreats 5 | . . . . . 2 . . 1 . . . . 2 Traps | -11 -10 -10 -10 -9 -8 -8 -8 -8 -8 -8 -6 -6 -6 ------- Run | Yrd Mat Min Exi Min Mat Gar Mat Sto Rec Scr Fac Was Fac Traps Triggered 8 | . 2 . . . . 2 . 1 . . 1 . 2 Indirectly . | . . . . . . . . . . . . . . Trap Hack Attempts . | . . . . . . . . . . . . . . Triggered . | . . . . . . . . . . . . . . Disarmed 6 | . . . . . . . . 6 . . . . . Reprogrammed . | . . . . . . . . . . . . . . Reused . | . . . . . . . . . . . . . . Traps Extracted . | . . . . . . . . . . . . . . Installed . | . . . . . . . . . . . . . . Triggered . | . . . . . . . . . . . . . . Objects Rigged 1 | . . . . . 1 . . . . . . . . Machines | -11 -10 -10 -10 -9 -8 -8 -8 -8 -8 -8 -6 -6 -6 ---------- Run | Yrd Mat Min Exi Min Mat Gar Mat Sto Rec Scr Fac Was Fac Machines Disabled 18 | . . . . . 1 6 . 1 . . . . 10 Max in Single Turn 4 | . . . . . 1 1 . 1 . . . . 4 Garrison Access 3 | . . . . . . . . 1 . . . . 2 Garrison Relay 1 | . . . . . . 1 . . . . . . . Machines Repaired . | . . . . . . . . . . . . . . Machines Dismantled . | . . . . . . . . . . . . . . Machines Sabotaged . | . . . . . . . . . . . . . . Overloaded Fab Kills . | . . . . . . . . . . . . . . Hacking | -11 -10 -10 -10 -9 -8 -8 -8 -8 -8 -8 -6 -6 -6 --------- Run | Yrd Mat Min Exi Min Mat Gar Mat Sto Rec Scr Fac Was Fac Machines Accessed 44 | . 4 . 1 . 7 4 . 9 5 . 6 . 8 Terminals 34 | . 4 . . . 6 4 . 8 4 . 5 . 3 Fabricators 1 | . . . . . . . . . . . . . 1 Repair Stations 3 | . . . . . . . . . . . 1 . 2 Recycling Units 1 | . . . . . . . . . 1 . . . . Scanalyzers . | . . . . . . . . . . . . . . Garrison Access 4 | . . . . . 1 . . 1 . . . . 2 Total Hacks 115 | . 10 . 1 . 21 8 . 24 14 . 20 . 17 Successful 78 | . 4 . 1 . 15 5 . 17 10 . 13 . 13 Failed 37 | . 6 . . . 6 3 . 7 4 . 7 . 4 Catastrophic 2 | . . . . . 2 . . . . . . . . Database Lockouts . | . . . . . . . . . . . . . . Manual 46 | . . . 1 . 14 3 . 10 4 . 11 . 3 Terminals 97 | . 10 . . . 20 8 . 22 12 . 18 . 7 Fabricators 1 | . . . . . . . . . . . . . 1 Repair Stations 9 | . . . . . . . . . . . 2 . 7 Recycling Units 2 | . . . . . . . . . 2 . . . . Scanalyzers . | . . . . . . . . . . . . . . Garrison Access 5 | . . . . . 1 . . 2 . . . . 2 Terminal Hacks 46 | . 4 . 1 . 9 3 . 12 7 . 5 . 5 Robot Schematic 1 | . . . . . . . . . . . . . 1 Robot Analysis 2 | . . . . . 1 . . . . . 1 . . Prototype ID Bank 11 | . 2 . . . 1 . . 1 4 . 2 . 1 Open Door 3 | . . . . . . 1 . 2 . . . . . Branch Access Points 4 | . . . . . 1 . . . . . 1 . 2 Emergency Access Points 1 | . . . . . . 1 . . . . . . . Machine Index 2 | . . . . . 1 . . . 1 . . . . Terminal Index 1 | . . . . . . . . . . . 1 . . Alert Level 1 | . . . . . . . . . 1 . . . . Unreport Threat 3 | . . . . . 1 . . 2 . . . . . Locate Traps 8 | . 1 . . . 2 . . 4 . . . . 1 Disarm Traps 1 | . . . . . . . . 1 . . . . . Hauler Manifests 2 | . . . . . 1 . . 1 . . . . . Zone Layout 4 | . 1 . . . 1 . . 1 1 . . . . Security Stations 1 | . . . . . . 1 . . . . . . . Derelict Proto ID Bank 1 | . . . 1 . . . . . . . . . . Fabricator Hacks . | . . . . . . . . . . . . . . Repair Station Hacks 6 | . . . . . . . . . . . 2 . 4 Scan Component 3 | . . . . . . . . . . . 1 . 2 Repair 3 | . . . . . . . . . . . 1 . 2 Recycling Unit Hacks 1 | . . . . . . . . . 1 . . . . Retrieve Components 1 | . . . . . . . . . 1 . . . . Scanalyzer . | . . . . . . . . . . . . . . Garrison Access Hacks 4 | . . . . . 1 . . 1 . . . . 2 Unlock Access 1 | . . . . . 1 . . . . . . . . Seal Access 3 | . . . . . . . . 1 . . . . 2 Unauthorized Hacks 21 | . . . . . 5 2 . 4 2 . 6 . 2 Terminals 20 | . . . . . 5 2 . 4 2 . 6 . 1 Track 4 | . . . . . 1 . . 1 . . 2 . . Assimilate 1 | . . . . . 1 . . . . . . . . Botnet 11 | . . . . . 1 2 . 3 2 . 2 . 1 Detonate 1 | . . . . . 1 . . . . . . . . Disrupt 2 | . . . . . 1 . . . . . 1 . . Operators 1 | . . . . . . . . . . . 1 . . Fabricators 1 | . . . . . . . . . . . . . 1 Liberate 1 | . . . . . . . . . . . . . 1 Repair Stations . | . . . . . . . . . . . . . . Recycling Units . | . . . . . . . . . . . . . . Scanalyzers . | . . . . . . . . . . . . . . Garrison Access . | . . . . . . . . . . . . . . Data Cores Recovered . | . . . . . . . . . . . . . . Used . | . . . . . . . . . . . . . . Hacking Detections 32 | . 4 . . . 5 3 . 6 3 . 5 . 6 Full Trace Events 8 | . 1 . . . 2 1 . . 1 . . . 3 Feedback Events . | . . . . . . . . . . . . . . Feedback Blocked . | . . . . . . . . . . . . . . Robot Schematics Acquired 1 | . . . . . . . . . . . . . 1 Robots Built . | . . . . . . . . . . . . . . Authchips . | . . . . . . . . . . . . . . Time . | . . . . . . . . . . . . . . Total Robot Build Rating . | . . . . . . . . . . . . . . Part Schematics Acquired . | . . . . . . . . . . . . . . Parts Built . | . . . . . . . . . . . . . . Authchips . | . . . . . . . . . . . . . . Time . | . . . . . . . . . . . . . . Total Part Build Rating . | . . . . . . . . . . . . . . Parts Repaired 3 | . . . . . . . . . . . 1 . 2 Time 131 | . . . . . . . . . . . 38 . 93 Parts Recycled . | . . . . . . . . . . . . . . Recycled Matter . | . . . . . . . . . . . . . . Retrieved Matter . | . . . . . . . . . . . . . . Retrieved Components 7 | . . . . . . . . . 7 . . . . Parts Scanalyzed . | . . . . . . . . . . . . . . Part Schematics Acquired . | . . . . . . . . . . . . . . Parts Damaged . | . . . . . . . . . . . . . . Bothacking | -11 -10 -10 -10 -9 -8 -8 -8 -8 -8 -8 -6 -6 -6 ------------ Run | Yrd Mat Min Exi Min Mat Gar Mat Sto Rec Scr Fac Was Fac Used RIF Installer . | . . . . . . . . . . . . . . Robots Hacked . | . . . . . . . . . . . . . . Non-combat . | . . . . . . . . . . . . . . Combat . | . . . . . . . . . . . . . . Robot Hacks Applied . | . . . . . . . . . . . . . . Relay Couplers Released 4 | . . . . . . 4 . . . . . . . Machine Destruction 2 | . . . . . . 2 . . . . . . . Programmers 2 | . . . . . . 2 . . . . . . . Fabnet Peak Effective % . | . . . . . . . . . . . . . . Robots Rewired 4 | . . . . . . . . . 4 . . . . Allies Hacked . | . . . . . . . . . . . . . . Hacks Repelled . | . . . . . . . . . . . . . . Allies | -11 -10 -10 -10 -9 -8 -8 -8 -8 -8 -8 -6 -6 -6 -------- Run | Yrd Mat Min Exi Min Mat Gar Mat Sto Rec Scr Fac Was Fac Total Allies 13 | . . 3 . . 1 2 . . 4 . . . 3 Largest Group 4 | . . 3 3 3 3 3 1 . 4 3 3 2 3 Highest-Rated Group 87 | . . 40 40 40 40 66 9 . 75 59 59 32 87 Highest-Rated Ally 31 | . . 16 16 16 16 31 9 . 27 27 27 16 29 Total Orders 21 | . . . . . 2 19 . . . . . . . STAY 10 | . . . . . 1 9 . . . . . . . FOLLOW 11 | . . . . . 1 10 . . . . . . . Ally Attacks 52 | . . . . . 18 8 . . 9 . 2 15 . Total Damage 694 | . . . . . 210 181 . . 87 . 31 185 . Kills 5 | . . . . . 2 1 . . 1 . 1 . . Allies Corrupted . | . . . . . . . . . . . . . . Allies Melted . | . . . . . . . . . . . . . . Intel | -11 -10 -10 -10 -9 -8 -8 -8 -8 -8 -8 -6 -6 -6 ------- Run | Yrd Mat Min Exi Min Mat Gar Mat Sto Rec Scr Fac Was Fac Robot Analysis Total 2 | . . . . . 1 . . . . . 1 . . Derelict Logs Recovered 1 | . . 1 . . . . . . . . . . . Drone Launches . | . . . . . . . . . . . . . . Drone Recoveries . | . . . . . . . . . . . . . . Exploration | -11 -10 -10 -10 -9 -8 -8 -8 -8 -8 -8 -6 -6 -6 ------------- Run | Yrd Mat Min Exi Min Mat Gar Mat Sto Rec Scr Fac Was Fac Turns Passed 10101 | 70 655 568 397 87 1267 1432 341 1190 948 1197 523 85 1341 Spaces Moved 7941 | 52 538 517 293 82 845 1238 256 780 737 1092 467 68 976 Core 6 | 6 . . . . . . . . . . . . . Treads . | . . . . . . . . . . . . . . Legs . | . . . . . . . . . . . . . . Wheels 7935 | 46 538 517 293 82 845 1238 256 780 737 1092 467 68 976 Hover . | . . . . . . . . . . . . . . Flight . | . . . . . . . . . . . . . . Fastest Speed 50 | 50 93 93 93 93 93 93 93 93 93 108 108 108 93 Average Speed 99 | 94 97 93 93 93 93 93 93 93 105 108 108 108 107 Slowest Speed 145 | 100 100 93 93 93 93 93 93 115 108 108 108 108 145 Overloaded Moves . | . . . . . . . . . . . . . . Propulsion Burnouts . | . . . . . . . . . . . . . . Robots Hopped . | . . . . . . . . . . . . . . Cave-ins Triggered . | . . . . . . . . . . . . . . Exploration Rate (%) 59 | 4 92 94 60 30 69 88 20 95 99 61 15 68 32 Regions Visited 13 Branch Regions 6 Pre-discovered Areas . | . . . . . . . . . . . . . . Known Exits Taken 2 | . . . . . 1 . 1 . . . . . . Unknown Exits Taken 8 | 1 1 1 1 1 . . . 1 1 1 . . . Scrap Searched 5 | . . 1 . 1 . . . . . 3 . . . Spaces Dug 53 | . . . . . 8 13 8 7 2 . 3 3 9 Terrain Destroyed 184 | . . . . . 22 17 10 19 4 . 5 3 104 Melee 1 | . . . . . . 1 . . . . . . . Projectile 79 | . . . . . 12 . 10 19 4 . 5 3 26 AOE 104 | . . . . . 10 16 . . . . . . 78 Terrain Rammed . | . . . . . . . . . . . . . . Walls Destroyed . | . . . . . . . . . . . . . . Machines Disabled . | . . . . . . . . . . . . . . Actions | -11 -10 -10 -10 -9 -8 -8 -8 -8 -8 -8 -6 -6 -6 --------- Run | Yrd Mat Min Exi Min Mat Gar Mat Sto Rec Scr Fac Was Fac Total 9583 | 62 602 584 416 92 1217 1417 331 1155 881 1109 479 76 1162 Wait 997 | . 10 42 117 10 273 45 52 281 88 15 . . 64 Move 7928 | 51 537 516 292 81 845 1235 255 779 736 1091 467 67 976 Hop . | . . . . . . . . . . . . . . Pick Up 18 | . 2 2 . . 3 7 . 1 1 1 1 . . Fast Attach 76 | 7 9 1 4 1 11 3 . 13 7 1 3 3 13 Attach . | . . . . . . . . . . . . . . Detach 2 | . 1 . . . . . . 1 . . . . . Swap 24 | . 1 1 . . 3 11 1 3 . . . . 4 Drop 69 | . 4 4 3 . 10 7 1 14 8 1 3 3 11 Fire 310 | 4 31 11 . . 53 60 20 45 15 . 5 3 63 Melee 2 | . . . . . . 2 . . . . . . . Ram . | . . . . . . . . . . . . . . Kick . | . . . . . . . . . . . . . . Crush . | . . . . . . . . . . . . . . Escape Stasis 24 | . . . . . . 16 . . . . . . 8 Rewire 15 | . . . . . . . . . 15 . . . . Trap . | . . . . . . . . . . . . . . Miscellaneous 118 | . 7 7 . . 19 31 2 18 11 . . . 23 Route ------- -11/Scrapyard -10/Materials (discovered 5 exits: [*Mat x2] / [*Min x2] / [Sub]) -10/Mines (discovered 3 exits: [*Mat x2] / *Exi) -10/Exiles -9/Mines -8/Materials (discovered 3 exits: [*Fac] / *Sto / Gar) -8/Garrison (discovered 4 exits: [*Mat x4]) -8/Materials (discovered 2 exits: [*Fac] / *Sto) -8/Storage (discovered 2 exits: [*Fac] / *Rec) -8/Recycling (discovered 2 exits: *Fac / *Scr) -8/Scraptown -6/Factory (discovered 2 exits: Low x2) -6/Waste -6/Factory (discovered 3 exits: [*Fac] / *Low x2) History --------- Turn | Location | Event 1 | -11/Scrapyard | Upgraded with Propulsion slot (x2) 1 | -11/Scrapyard | Upgraded with Utility slot (x1) 1 | -11/Scrapyard | Upgraded with Weapon slot (x1) 24 | -11/Scrapyard | Discovered new exit (range 16) 71 | -11/Scrapyard | Entered Materials 126 | -10/Materials | Discovered new exit (range 14) 334 | -10/Materials | Build established: Mutant 403 | -10/Materials | Discovered new exit (range 11) 462 | -10/Materials | Discovered new exit (range 20) 462 | -10/Materials | Discovered new exit (range 17) 670 | -10/Materials | Discovered new exit (range 14) 726 | -10/Materials | Entered Mines 731 | -10/Mines | Joined a pair of Derelicts in attacking an 0b10 outpost 745 | -10/Mines | Met a Derelict bent on vengeance 807 | -10/Mines | Received a Rocket Launcher from a helpful Derelict 833 | -10/Mines | Reached level 2 878 | -10/Mines | Learned Materials emergency access door positions 890 | -10/Mines | Discovered new exit (range 6) 969 | -10/Mines | Discovered new exit (range 10) 1173 | -10/Mines | Assisted by bots powering up and referring to "LRC-V3" 1252 | -10/Mines | Deemed a non-threat by the Exiles lab entrance 1252 | -10/Mines | Discovered new exit (range 5) 1294 | -10/Mines | Entered Exiles 1294 | -10/Exiles | Accompanied by 3 allies 1317 | -10/Exiles | Met 8R-AWN 1335 | -10/Exiles | Met EX-HEX 1361 | -10/Exiles | Met EX-BIN 1451 | -10/Exiles | Aligned with FarCom system 1451 | -10/Exiles | Given EX-Vault access code 1473 | -10/Exiles | Opened EX-Vault 1477 | -10/Exiles | Upgraded with Weapon slot (x1) 1478 | -10/Exiles | Found AWS/Autocannon 1484 | -10/Exiles | Upgraded with Utility slot (x1) 1484 | -10/Exiles | Found 0b10 Alert Chip 1514 | -10/Exiles | Warned to stay clear of 0b10 Research branches 1519 | -10/Exiles | Exiles lab attacked by MAIN.C 1577 | -10/Exiles | Discovered new exit (range 11) 1691 | -10/Exiles | Left Exiles lab with 0b10 Alert Chip 1691 | -10/Exiles | Entered Mines 1691 | -9/Mines | Accompanied by 3 allies 1722 | -9/Mines | A weapon hastily lodged in a ceiling crevice suddenly fell to the ground 1763 | -9/Mines | Discovered new exit (range 6) 1778 | -9/Mines | Entered Materials 1778 | -8/Materials | Accompanied by 3 allies 1780 | -8/Materials | Reached level 3 1780 | -8/Materials | Reached level 4 1780 | -8/Materials | Reached level 5 1780 | -8/Materials | Reached level 6 1922 | -8/Materials | Reached level 7 1937 | -8/Materials | Garrison activated, responded to threat 2030 | -8/Materials | Identified exit to Storage 2086 | -8/Materials | Build established: Skirmisher 2225 | -8/Materials | Upgraded with Utility slot (x1) 2351 | -8/Materials | Discovered new exit (range 16) 2449 | -8/Materials | Reached level 8 2616 | -8/Materials | Upgraded with Utility slot (x1) 2840 | -8/Materials | Upgraded with Utility slot (x1) 2903 | -8/Materials | Build established: Hacker-Skirmisher 2951 | -8/Materials | Upgraded with Utility slot (x2) 3045 | -8/Materials | Identified exit to Garrison 3045 | -8/Materials | Entered Garrison 3045 | -8/Garrison | Accompanied by 1 ally 3047 | -8/Garrison | Reached level 9 3077 | -8/Garrison | Triggered checkpoint 3179 | -8/Garrison | Triggered checkpoint 3232 | -8/Garrison | Triggered checkpoint 3262 | -8/Garrison | Destroyed 7 combat bots 3339 | -8/Garrison | Discovered new exit (range 8) 3357 | -8/Garrison | Triggered checkpoint 3376 | -8/Garrison | Discovered new exit (range 5) 3437 | -8/Garrison | Triggered checkpoint 3503 | -8/Garrison | Rescued a captive Derelict 3505 | -8/Garrison | Rescued a captive Derelict 3513 | -8/Garrison | Reached level 10 3578 | -8/Garrison | Triggered checkpoint 3625 | -8/Garrison | Triggered checkpoint 3679 | -8/Garrison | Triggered checkpoint 3726 | -8/Garrison | Learned Materials security intel 3761 | -8/Garrison | Discovered new exit (range 13) 3810 | -8/Garrison | Triggered checkpoint 3892 | -8/Garrison | Discovered new exit (range 10) 3913 | -8/Garrison | Triggered checkpoint 4001 | -8/Garrison | Reached level 11 4164 | -8/Garrison | Triggered checkpoint 4295 | -8/Garrison | Attempted to access garrison exit controls, blocked by remote lockdown 4390 | -8/Garrison | Attempted to access garrison exit controls, blocked by remote lockdown 4477 | -8/Garrison | Entered Materials 4477 | -8/Materials | Accompanied by 1 ally 4617 | -8/Materials | Discovered new exit (range 13) 4684 | -8/Materials | Discovered exit to Storage (range 15) 4818 | -8/Materials | Entered Storage 4999 | -8/Storage | Reached level 12 5122 | -8/Storage | Used back door to open Recycling access 5122 | -8/Storage | Discovered new exit (range 5) 5167 | -8/Storage | Upgraded with Power slot (x1) 5258 | -8/Storage | Discovered new exit (range 12) 6008 | -8/Storage | Entered Recycling 6418 | -8/Recycling | Reached level 13 6468 | -8/Recycling | Scanned before Scraplab entrance 6510 | -8/Recycling | Discovered new exit (range 5) 6899 | -8/Recycling | Discovered new exit (range 11) 6902 | -8/Recycling | Entered Scraplab 6956 | -8/Recycling | Entered Scraptown 6956 | -8/Scraptown | Accompanied by 3 allies 7094 | -8/Scraptown | Turned away by UFD registrar 7111 | -8/Scraptown | Visited CR-KLE's Repair Center 7141 | -8/Scraptown | Visited IN-MT5's Study 7244 | -8/Scraptown | Build established: Hacker-Tank 7278 | -8/Scraptown | Discovered new exit (range 5) 7685 | -8/Scraptown | Visited Awakened 7714 | -8/Scraptown | Visited Fellowship of the Rings 7752 | -8/Scraptown | Visited SPCMW 7816 | -8/Scraptown | Visited Symbiants 7840 | -8/Scraptown | Visited TADAMA 8073 | -8/Scraptown | CR-KLE repaired 1 part 8153 | -8/Scraptown | Entered Factory 8153 | -6/Factory | Accompanied by 3 allies 8155 | -6/Factory | Reached level 14 8208 | -6/Factory | Repaired Great Maul? 8411 | -6/Factory | Identified exit to Lower Caves 8440 | -6/Factory | Build established: Hacker-Skirmisher 8676 | -6/Factory | Sucked down chute 8676 | -6/Factory | Entered Waste 8688 | -6/Waste | Found Prototype Device 8688 | -6/Waste | Identified Adv. EM Disruption Field 8690 | -6/Waste | Upgraded with Utility slot (x1) 8691 | -6/Waste | EMP discharged 8711 | -6/Waste | 2 allies followed down the chute 8715 | -6/Waste | Spotted C-40 Crusher 8716 | -6/Waste | Spotted C-40 Crusher 8716 | -6/Waste | Spotted C-40 Crusher 8723 | -6/Waste | Spotted C-40 Crusher 8733 | -6/Waste | Spotted C-40 Crusher 8734 | -6/Waste | Spotted C-40 Crusher 8748 | -6/Waste | Discovered new exit (range 10) 8761 | -6/Waste | Entered Factory 8803 | -6/Factory | Repaired Rnf. Antimatter Reactor? 9168 | -6/Factory | Discovered new exit (range 5) 9235 | -6/Factory | Reached level 15 9478 | -6/Factory | Spotted B-75 Beast 9741 | -6/Factory | Garrison activated, responded to threat 9780 | -6/Factory | Repaired Broken Adv. EM Disruption Field? 10049 | -6/Factory | Cargo convoy interrupted 10056 | -6/Factory | Reached level 16 10073 | -6/Factory | Core integrity fell below 50% 10098 | -6/Factory | Core integrity fell below 20% 10102 | -6/Factory | Destroyed by H-61 Shepherd with Heavy Assault Cannon Last Messages --------------- 10070_ Destroyed Prototype Device. 10070_ Terminal disabled. 10070_ Construction Platform disabled. 10074_ The unstable cave ceiling collapses. 10084_ Transport Network Coupler fried. 10084_ A-27 Freighter destroyed. 10084_ Fusion Modulator explodes. 10085_ Wheel blasted off. 10087_ System corrupted: Component data lost. 10093_ Dropped Prc. Rocket Launcher. 10093_ Acquired Prototype Ballistic Gun. 10093_ Identified Enh. Coil Gun. 10096_ Dropped Imp. Assault Rifle. 10097_ Acquired Prototype Ballistic Gun. 10097_ Identified Adv. KE Penetrator. 10098_ Com. Wheel destroyed. 10098_ Knocked back. 10099_ Dropped Adv. KE Penetrator. 10100_ Knocked back. 10102_ Fission Core blasted off. Map ----- +----------------------------------------------------+ | ?????????? ???????????????## ## #### | | ??????? ???????????????########## #### | | ###?????## ???????????????########## ####!| | | ###?????## ?????????????????######## ####*= | | ##??????## ??????????? ####%#### | | ##??????## ???? ????????######### #####=#### | | ?????????## ##????## ?????########### #####!#### | | ?????????## ######## ?????########### ##?##=#### | | ?????????## ######## ????? ### ##?## #### | | ?????????## # # ??? ?? ### #####*#### | | ???######## # """" # "??" ??"" ### #####!#### | | ???######## # """" # "??" """" ### ## #" #### | | ???## + """" # """" """" ###/ # #/ # | | ???## ##### # """" # """" """" # =* # | | ??### ##### # # """" """"H # ! | | ##### ##### ######## """" """ # | | #### #### ######## """" """ # % # | | #### ##????## # [ | | ####* #### ##????## ; % | | ########### ####??## g % | | ########### ####??## "" # % # | | # [ # ###### ; | | # # ###### # | | # " F" + = # | | # """" # ##### [ * # ### # | | # # #### ][ [@ %################## | | ########## ##### [ %[%[ #################### | | # # ####; *=* *% ####???????????????? | | # ! +^ ####; ] ###????????????????? | | # # ####; ;##????????????????? | | # # ####; ; ??????????????? | | # # #### ;;###??????????????? | | ## # ####; ; ###??????????????? | | # # ; ; ##???????????????? | | # """"" + ####; ; ##???????????????? | | # """"" # ####; ; ##???????????????? | | # """ ######### ;###???????????????? | | # #########;;;; ;;;;###???????????????? | | ##########?????#### # #####????????????????? | | ##########?????#################????????????????? | | ###??????????????############???????????????????? | | ###??????????????????????????????????????????????? | | | | | | | | | | | | | | | | | +----------------------------------------------------+ Best States ------------- Heat Dissipation 63 Coolant Potential 50 Energy Generation 34 Energy Capacity 535 Matter Stores 300 Matter Capacity 300 Sight Range 16 Terrain Scan Range 16 Terrain Scan Density 10 Base Temperature (-) 100 Armor Coverage 225 Resistance: KI 20 Resistance: TH 20 Resistance: EX 20 Resistance: EM 70 Resistance: I 20 Resistance: S 20 Resistance: P 20 Evasion (%) 41 Offensive Hacking 34 Item Schematics ----------------- None Robot Schematics ------------------ P-60 Hacker | -6/Factory | Hacked Fabricated ------------ Nothing Alien Tech Used ----------------- None Achievements -------------- None Challenges ------------ None RPGLIKE | -11 -10 -10 -10 -9 -8 -8 -8 -8 -8 -8 -6 -6 -6 --------- Run | Yrd Mat Min Exi Min Mat Gar Mat Sto Rec Scr Fac Was Fac Levels Raised 15 | . . 1 . . 6 3 . 1 1 . 1 . 2 XP Earned 27003 | 4000 990 750 350 843 8582 3851 241 1633 828 170 1805 200 2760 XP Spent 19250 | 3050 750 . 1600 . 8500 1000 . 500 . 1250 . 2600 . Upgrades 18 | 6 1 . 2 . 5 1 . 1 . 1 . 1 . Power Slot 1 | . . . . . . . . 1 . . . . . Propulsion Slot 2 | 2 . . . . . . . . . . . . . Utility Slot 8 | 1 . . 1 . 5 . . . . . . 1 . Weapon Slot 2 | 1 . . 1 . . . . . . . . . . Inventory Capacity 5 | 2 1 . . . . 1 . . . 1 . . . Protomatter Created 1403 | . 60 58 . . 158 353 9 354 103 . . . 308 Integrity Restored 2089 | . 131 129 . . 366 435 27 260 240 . . . 501 Core 1404 | . 102 53 . . 286 255 27 134 46 . . . 501 Parts 685 | . 29 76 . . 80 180 . 126 194 . . . . Protomatter Decayed 620 | . . . 57 . 80 123 . 256 21 . . . 83 Game ------ Seed ThiefExplosiveSlayer Manual? 0 Play Time 02:09:39 Cumulative 449.0 hours Start 2024.08.19 @ 21:58:45 End 2024.08.20 @ 00:27:55 Sessions 1 Manual Loads 0 Difficulty Adventurer Special Mode Winter2019/RPGLIKE Game No. 36 Rogue 9 Adventurer 13 Explorer 14 Win Type - Total 25 Types 17/0/4/1/1/2/0/0/0 Lore% 66 Gallery% 80 Achievement% 72 Wizard Run 0 Options --------- Layout 0 ASCII 0 Keyboard 0 Movement Mouse Keybinds 0 Fullscreen 2 Font 36/Terminus++ Map View 76x50 Zoom Use 0% Tactical HUD 1 Map Filters NONE Filters NONE Steam 0 RUN: c5608abd-8b20-478f-b5ec-4abead029bef